Cogmind - Beta 14 @@@ ROGUE MODE // 2025.03.03 @ 23:32:33 Player: Luna Result: Destroyed by G-34 Mercenary with Small Laser Performance ------------- Evolutions (0) 0 Regions Visited (1) 200 Robots Destroyed (10) 50 Value Destroyed (200) 200 Prototype IDs (0) 0 Alien Tech Used (0) 0 Bonus (0) 0 TOTAL SCORE: 450 Bonus ------- None Cogmind --------- Core Integrity 0/250 Matter 300/300 Energy 92/100 System Corruption 0% Temperature Cool (6) Movement Walking (400) Ox4 Location -10/Materials Parts ------- > --- POWER (1) -------- (None) > --- PROPULSION (2) --- Aluminum Leg > --- UTILITY (2) ------ High-capacity Storage Unit > --- WEAPON (2) ------- Small Laser > --- INVENTORY (20) --- Light Ion Engine Aluminum Leg Aluminum Leg Small Storage Unit Peak State ------------ > --- POWER ------------ Ion Engine > --- PROPULSION ------- Light Treads Light Treads > --- UTILITY ---------- Small Storage Unit Small Matter Pod > --- WEAPON ----------- Small Laser Small Laser > --- INVENTORY -------- Light Ion Engine [Rating: 7] Favorites ----------- Power Ion Engine Engine Ion Engine Propulsion Light Treads Treads Light Treads Leg Aluminum Leg Wheel Compact Wheel Flight Unit Flight Unit Utility Small Matter Pod Storage Small Matter Pod Weapon Small Laser Energy Gun Small Laser Build | -11 -10 ------- Run | Yrd Mat Slots Evolved . | . . Power . | . . Propulsion . | . . Utility . | . . Weapon . | . . Parts Attached 18 | 9 9 Power 2 | 2 . Engine 2 | 2 . Core . | . . Reactor . | . . Propulsion 10 | 4 6 Treads 2 | 2 . Leg 5 | 1 4 Wheel 1 | 1 . Hover . | . . Flight 2 | . 2 Utility 4 | 1 3 Device . | . . Storage 4 | 1 3 Processor . | . . Hackware . | . . Protection . | . . Artifact . | . . Weapon 2 | 2 . Energy Gun 2 | 2 . Energy Cannon . | . . Ballistic Gun . | . . Ballistic Cannon . | . . Launcher . | . . Special Weapon . | . . Impact Weapon . | . . Slashing Weapon . | . . Piercing Weapon . | . . Special Melee Weapon . | . . Unidentified Prototypes . | . . Parts Lost 7 | . 7 Power 1 | . 1 Propulsion 4 | . 4 Utility 1 | . 1 Weapon 1 | . 1 Highest Loss Streak 4 | . 4 To Critical Strikes 1 | . 1 Average Slot Usage (%) 87 | . 87 Engine 6 | . 6 Treads 16 | . 16 Leg 7 | . 7 Flight 1 | . 1 Storage 26 | . 26 Energy Gun 27 | . 27 Peak Build Rating 7 | 6 7 Average Rating 5 | 4 6 On Entrance 3 | . 6 Naked Turns . | . . Heaviest Build 43 | 12 43 Greatest Support 40 | 40 40 Greatest Overweight (x) 14 | 1 14 Average Overweight (x) 1 | . 1 Largest Inventory Capacity 20 | 8 20 Average Capacity 12 | 7 14 Most Carried 4 | 1 4 Average Carried 1 | . 2 Final Capacity 20 | 8 20 Final Carried 4 | 1 4 Class Distribution -------------------- 100% | Mutant Dominant Class ---------------- Mutant | -10/Materials Resources | -11 -10 ----------- Run | Yrd Mat Matter Collected 405 | 240 165 Remotely . | . . Salvage Created 377 | 28 349 Parts 16 | 1 15 Haulers Intercepted . | . . Recyclers Shooed . | . . Parts Field Recycled . | . . Retrieved Matter . | . . Parts Self-Destructed . | . . Prevented . | . . Kills | -11 -10 ------- Run | Yrd Mat Combat Hostiles Destroyed 7 | . 7 Guns 7 | . 7 Classes Destroyed 4 | 1 3 Worker 2 | 1 1 Recycler 1 | . 1 Swarmer 3 | . 3 Grunt 4 | . 4 Best Kill Streak 5 | 1 5 Combat Bots Only 4 | . 4 Max Kills in Single Turn 1 | 1 1 Gunslinging . | . . Exploded . | . . Melee . | . . Uniques/NPCs Destroyed . | . . Combat | -11 -10 -------- Run | Yrd Mat Hostile Shots Fired 129 | . 129 Missed 37 | . 37 Damage Taken 971 | . 971 Core 253 | . 253 Absorbed by Shields . | . . Core Remaining (%) 100 | 100 . Volleys Fired 44 | 1 43 Largest 2 | 2 2 Hottest 80 | 80 80 Shots Fired 76 | 2 74 Gun 76 | 2 74 Cannon . | . . Launcher . | . . Special . | . . Kinetic . | . . Thermal 76 | 2 74 Explosive . | . . Electromagnetic . | . . Robot Hit Streak 6 | 1 6 Robot Miss Streak 3 | . 3 Penetration Max . | . . Secondary Targets 1 | . 1 Max Gunslinging Chain 1 | . 1 Shots Hit Robots 36 | 1 35 Core Hits 18 | 1 17 Critical Kills . | . . Critical Parts Destroyed . | . . Critical Strikes . | . . Melee Attacks . | . . Impact . | . . Slashing . | . . Piercing . | . . Sneak Attacks . | . . Combat Hostiles . | . . Follow-up Attacks . | . . Damage Inflicted 425 | 10 415 Guns 425 | 10 415 Cannons . | . . Explosions . | . . Melee . | . . Ramming . | . . Kinetic . | . . Thermal 425 | 10 415 Explosive . | . . Electromagnetic . | . . Impact . | . . Slashing . | . . Piercing . | . . Highest Corruption . | . . Average Corruption . | . . Corruption Purged . | . . Corruption Blocked . | . . Overload Shots . | . . Overflow Damage . | . . Projectiles . | . . Explosions . | . . Melee . | . . Knockbacks . | . . Impact . | . . Kinetic . | . . Secondary . | . . Self-Inflicted Damage . | . . Shots . | . . Rammed . | . . Targets Rammed . | . . Kicked . | . . Crushed . | . . Highest Temperature 164 | 18 164 Average Temperature 47 | 12 47 Received Heat Transfer 393 | . 393 Siege Activations . | . . Robots Corrupted . | . . Combat Hostiles . | . . Parts Fried . | . . Impact Corruptions . | . . Robots Melted . | . . Combat Hostiles . | . . Parts Melted 1 | . 1 Heat Transferred 950 | 25 925 Parts Sabotaged . | . . Parts Stolen . | . . Parts Stripped . | . . Power Chain Reactions . | . . Alert | -11 -10 ------- Run | Yrd Mat Peak Influence 143 | 5 143 Initial 3 | . 3 Average 47 | . 59 Maximum Alert Level . | . . Low Security (%) 100 | 100 100 Level 1 . | . . Level 2 . | . . Level 3 . | . . Level 4 . | . . Level 5 . | . . High Security . | . . Max Security . | . . Squads Dispatched . | . . Investigation . | . . Extermination . | . . Reinforcement . | . . Assault . | . . Garrison . | . . Intercept . | . . Searches Triggered . | . . Construction Impeded . | . . Haulers Reinforced . | . . Active Scanning Responses . | . . Cargo Convoy Interrupts . | . . Stealth | -11 -10 --------- Run | Yrd Mat Distress Signals 2 | . 2 Communications Jammed . | . . Distress Signals . | . . Times Spotted 18 | . 18 Peak Tracking Total 6 | . 6 Tactical Retreats 2 | . 2 Traps | -11 -10 ------- Run | Yrd Mat Traps Triggered . | . . Indirectly . | . . Trap Hack Attempts . | . . Triggered . | . . Disarmed . | . . Reprogrammed . | . . Reused . | . . Traps Extracted . | . . Installed . | . . Triggered . | . . Machines | -11 -10 ---------- Run | Yrd Mat Machines Disabled . | . . Max in Single Turn . | . . Machines Repaired . | . . Machines Dismantled . | . . Machines Sabotaged . | . . Overloaded Fab Kills . | . . Hacking | -11 -10 --------- Run | Yrd Mat Machines Accessed 1 | . 1 Terminals 1 | . 1 Fabricators . | . . Repair Stations . | . . Recycling Units . | . . Scanalyzers . | . . Garrison Access . | . . Total Hacks 5 | . 5 Successful 4 | . 4 Failed 1 | . 1 Catastrophic . | . . Database Lockouts . | . . Manual . | . . Terminals 5 | . 5 Fabricators . | . . Repair Stations . | . . Recycling Units . | . . Scanalyzers . | . . Garrison Access . | . . Terminal Hacks 4 | . 4 Alert Level 2 | . 2 Unreport Threat 1 | . 1 Locate Traps 1 | . 1 Fabricator Hacks . | . . Repair Station Hacks . | . . Recycling Unit Hacks . | . . Scanalyzer . | . . Garrison Access Hacks . | . . Unauthorized Hacks . | . . Terminals . | . . Fabricators . | . . Repair Stations . | . . Recycling Units . | . . Scanalyzers . | . . Garrison Access . | . . Data Cores Recovered . | . . Used . | . . Hacking Detections 1 | . 1 Full Trace Events 1 | . 1 Feedback Events . | . . Feedback Blocked . | . . Robot Schematics Acquired . | . . Robots Built . | . . Authchips . | . . Time . | . . Total Robot Build Rating . | . . Part Schematics Acquired . | . . Parts Built . | . . Authchips . | . . Time . | . . Total Part Build Rating . | . . Parts Repaired . | . . Time . | . . Parts Recycled . | . . Recycled Matter . | . . Retrieved Matter . | . . Retrieved Components . | . . Parts Scanalyzed . | . . Part Schematics Acquired . | . . Parts Damaged . | . . Bothacking | -11 -10 ------------ Run | Yrd Mat Used RIF Installer . | . . Robots Hacked . | . . Non-combat . | . . Combat . | . . Robot Hacks Applied . | . . Relay Couplers Released . | . . Fabnet Peak Effective % . | . . Robots Rewired . | . . Allies Hacked . | . . Hacks Repelled . | . . Allies | -11 -10 -------- Run | Yrd Mat Total Allies . | . . Largest Group . | . . Highest-Rated Group . | . . Highest-Rated Ally . | . . Total Orders . | . . Ally Attacks . | . . Total Damage . | . . Kills . | . . Allies Corrupted . | . . Allies Melted . | . . Intel | -11 -10 ------- Run | Yrd Mat Robot Analysis Total . | . . Derelict Logs Recovered . | . . Drone Launches . | . . Drone Recoveries . | . . Exploration | -11 -10 ------------- Run | Yrd Mat Turns Passed 528 | 114 414 Spaces Moved 181 | 67 114 Core 11 | 3 8 Treads 104 | 38 66 Legs 43 | 11 32 Wheels 15 | 15 . Hover . | . . Flight 8 | . 8 Fastest Speed 50 | 50 150 Average Speed 210 | 143 249 Slowest Speed 750 | 190 750 Overloaded Moves . | . . Propulsion Burnouts . | . . Robots Hopped . | . . Cave-ins Triggered . | . . Exploration Rate (%) 13 | 4 22 Regions Visited 1 Branch Regions . Pre-discovered Areas . | . . Known Exits Taken . | . . Unknown Exits Taken 1 | 1 . Scrap Searched . | . . Spaces Dug . | . . Terrain Destroyed . | . . Melee . | . . Projectile . | . . AOE . | . . Terrain Rammed . | . . Walls Destroyed . | . . Machines Disabled . | . . Actions | -11 -10 --------- Run | Yrd Mat Total 248 | 80 168 Wait 2 | 2 . Move 180 | 66 114 Hop . | . . Pick Up . | . . Fast Attach 12 | 8 4 Attach . | . . Detach . | . . Swap 6 | 1 5 Drop 4 | 2 2 Fire 44 | 1 43 Melee . | . . Ram . | . . Kick . | . . Crush . | . . Escape Stasis . | . . Rewire . | . . Trap . | . . Miscellaneous . | . . Route ------- -11/Scrapyard -10/Materials (discovered 1 exit: [*Min]) History --------- Turn | Location | Event 27 | -11/Scrapyard | Discovered new exit (range 16) 115 | -11/Scrapyard | Entered Materials 314 | -10/Materials | Build established: Mutant 419 | -10/Materials | Discovered new exit (range 15) 479 | -10/Materials | Core integrity fell below 50% 516 | -10/Materials | Core integrity fell below 20% 529 | -10/Materials | Destroyed by G-34 Mercenary with Small Laser Last Messages --------------- 6x EMP Trap 6x Shock Trap Map updated. 00395_ Terminal unresponsive. 00419_ EXIT=FOUND 00452_ W-16 Scout sends out distress signal. 00460_ G-34 Mercenary destroyed. 00461_ K-01 Serf collects debris. 00472_ Acquired 30 matter. 00477_ Lgt. Treads destroyed. 00483_ Acquired Aluminum Leg. 00494_ Sml. Matter Pod destroyed. 00500_ Sml. Laser destroyed. 00506_ G-47 Trooper destroyed. 00507_ K-01 Serf collects debris. 00515_ K-01 Serf destroyed. 00515_ K-01 Serf collects debris. 00516_ U-05 Engineer builds a Door. 00517_ K-01 Serf collects debris. 00525_ Aluminum Leg destroyed. Map ----- +----------------------------------------------------+ | ?????????????????????????????????????????????????? | | ?????????????????????????????????????????????????? | | ?????????????????????????????????????????????????? | | ?????????????????????????????????????????????????? | | ?????????????????????????????????????????????????? | | ?????????????????????????????????????????????????? | | ?????????????????????????????????????????????????? | | ?????????????????????????????????????????????????? | | ?????????????????????????????????????????????????? | | ?????????????????????????????????????????????????? | | ?????????????????????????????????????????????????? | | ? ? ?????????????????????????????????????????????? | | ?????????????????????????????????????????????? | | T ?????????????????????????????????????????????? | | ??????????? ?????????????????????????????????? | | ???????????# ????????????????????????????????? | | # ???????????# ???????????????????????????????? | | # ???????????# ???????????????????????????????? | | # #??????????# ??????????????????????????????? | | # +?????????## k#?????????????????????????????? | | # #?????????# u ######???????????????????????? | | # #?????????# #???????????????????????? | | # #?????????# ^^ #???????????????????????? | | # ##########???? ^t^^^#?????????###???????????? | | # # #???????# ######## #??????????? | | # # = ! #########% @* m ^ ^^^^^????? | | # + %! # [ + ==%g < ????????? | | # # "T" + T #r ????????? | | # # """ # #u ######## ##?????????? | | # ################## kk#????????? ##??????????? | | # #????????????????# #???????????????????????? | | # ######## +???????????????????????? | | # = %[%=! # ??????????????????????? | | # %=######## # =?????????????????????? | | # [#????????????#+#######? ?????????????????????? | | # #??????????????????????""????????????????????? | | # #???????????????????????""???????????????????? | | #????????????????????????" ??????????????????? | | #????????????????????????????????????????????? | | #????????????????????????????????????????????? | | #####????????????????????????????????????????????? | | [#??????????????????????????????????????????????? | | #??????????????????????????????????????????????? | | #??????????????????????????????????????????????? | | " #??????????????????????????????????????????????? | | " #??????????????????????????????????????????????? | | " #??????????????????????????????????????????????? | | #??????????????????????????????????????????????? | | ###??????????????????????????????????????????????? | | | +----------------------------------------------------+ Best States ------------- Heat Dissipation 25 Energy Generation 10 Energy Capacity 250 Matter Stores 350 Matter Capacity 350 Sight Range 16 Terrain Scan Density 10 Evasion (%) 50 Recoil Reduction 2 Item Schematics ----------------- None Robot Schematics ------------------ None Fabricated ------------ Nothing Alien Tech Used ----------------- None Achievements -------------- None Challenges ------------ None Game ------ Seed CoreSigixScanner Manual? 0 Play Time 00:16:08 Cumulative 5.9 hours Start 2025.03.02 @ 01:00:07 End 2025.03.03 @ 23:32:33 Sessions 1 Manual Loads 0 Difficulty Rogue Special Mode None Game No. 8 Rogue 7 Adventurer 0 Explorer 1 Win Type - Total 0 Types 0/0/0/0/0/0/0/0/0 Lore% 1 Gallery% 11 Achievement% 11 Wizard Run 0 Options --------- Layout 1 ASCII 0 Keyboard 0 Movement Mouse Keybinds 0 Fullscreen 1 Font 16/SmallcapsGlow Map View 50x40 Zoom Use 0% Tactical HUD 1 Map Filters NONE Filters NONE Steam SD RUN: b4a6980a-a8e1-4a6d-9bb6-c9cc6064da54